Cogmind - Beta 14 @@@ ROGUE MODE // 2024.08.29 @ 17:49:52 Player: Daffa0360 Result: Destroyed by NO-7RP(R) with Subdweller Machine Gun Performance ------------- Evolutions (0) 0 Regions Visited (2) 400 Robots Destroyed (33) 165 Value Destroyed (825) 825 Prototype IDs (13) 260 Alien Tech Used (0) 0 Bonus (0) 0 TOTAL SCORE: 1650 Bonus ------- None Cogmind --------- Core Integrity 0/250 Matter 154/300 Energy 180/180 System Corruption 0% Temperature Cool (0) Movement Rolling (115) Ox1 Location -10/Subcaves Parts ------- > --- POWER (1) -------- Meta Core > --- PROPULSION (2+1) - Compact Wheel > --- UTILITY (2) ------ Large Storage Unit > --- WEAPON (2+1) ----- Heavy Battle Rifle > --- INVENTORY (15) --- Ion Engine Aluminum Leg Subdweller Monowheel Improved Terrain Scanner Subdweller Laser Autogun Autogun Subdweller Machine Gun Light Cannon Makeshift Hammer Ripper Scrap Shield Fragment (42) Peak State ------------ > --- POWER ------------ Meta Core > --- PROPULSION ------- Subdweller Monowheel Subdweller Monowheel > --- UTILITY ---------- Large Storage Unit Scrap Shield > --- WEAPON ----------- Heavy Battle Rifle Ripper > --- INVENTORY -------- Ion Engine Aluminum Leg Wheel Compact Wheel Improved Terrain Scanner Subdweller Laser Autogun Autogun Subdweller Machine Gun Light Cannon Rocket Launcher Makeshift Hammer Scrap Shield Fragment [Rating: 32] Favorites ----------- Power Ion Engine Engine Ion Engine Power Core Meta Core Propulsion Compact Wheel Leg Aluminum Leg Wheel Compact Wheel Utility Large Storage Unit Device Seismic Detector Storage Large Storage Unit Protection Scrap Shield Weapon Autogun Energy Gun Medium Laser Ballistic Gun Autogun Ballistic Cannon Light Cannon Launcher Rocket Launcher Slashing Weapon Ripper Build | -11 -10 -10 ------- Run | Yrd Mat Sub Slots Evolved . | . . . Power . | . . . Propulsion . | . . . Utility . | . . . Weapon . | . . . Parts Attached 39 | 1 15 23 Power 7 | . 2 5 Engine 6 | . 2 4 Core 1 | . . 1 Reactor . | . . . Propulsion 11 | . 6 5 Treads . | . . . Leg . | . . . Wheel 11 | . 6 5 Hover . | . . . Flight . | . . . Utility 3 | . 2 1 Device 1 | . 1 . Storage 1 | . 1 . Processor . | . . . Hackware . | . . . Protection 1 | . . 1 Artifact . | . . . Weapon 18 | 1 5 12 Energy Gun . | . . . Energy Cannon . | . . . Ballistic Gun 10 | 1 4 5 Ballistic Cannon 5 | . 1 4 Launcher 1 | . . 1 Special Weapon . | . . . Impact Weapon . | . . . Slashing Weapon 2 | . . 2 Piercing Weapon . | . . . Special Melee Weapon . | . . . Unidentified Prototypes . | . . . Parts Lost 8 | . 1 7 Power 3 | . 1 2 Propulsion 2 | . . 2 Utility 2 | . . 2 Weapon 1 | . . 1 Highest Loss Streak 3 | . 1 3 To Critical Strikes . | . . . Average Slot Usage (%) 86 | . 85 87 Engine 11 | . 13 9 Core 1 | . . 3 Wheel 26 | . 27 25 Device 9 | . 12 7 Storage 13 | . 14 12 Protection 1 | . . 3 Ballistic Gun 15 | . 15 15 Ballistic Cannon 5 | . . 8 Peak Build Rating 32 | 6 10 32 Average Rating 13 | 6 8 17 On Entrance 7 | 6 6 9 Naked Turns . | . . . Heaviest Build 52 | 12 32 52 Greatest Support 40 | 20 32 40 Greatest Overweight (x) 2 | . 2 1 Average Overweight (x) . | . . . Largest Inventory Capacity 15 | 8 15 15 Average Capacity 14 | 8 14 15 Most Carried 15 | 6 10 15 Average Carried 11 | 4 9 13 Final Capacity 15 | 8 15 15 Final Carried 12 | 5 9 12 Class Distribution -------------------- 89% | Mutant 10% | Subdweller-Mutant Dominant Class ---------------- Mutant | -10/Materials Mutant | -10/Subcaves Resources | -11 -10 -10 ----------- Run | Yrd Mat Sub Matter Collected 1196 | 270 235 691 Remotely . | . . . Salvage Created 899 | 185 235 479 Parts 49 | 13 7 29 Haulers Intercepted . | . . . Recyclers Shooed 1 | 1 . . Parts Field Recycled . | . . . Retrieved Matter . | . . . Parts Self-Destructed 17 | . . 17 Prevented . | . . . Kills | -11 -10 -10 ------- Run | Yrd Mat Sub Combat Hostiles Destroyed 27 | . 7 20 Guns 19 | . 7 12 Cannons 6 | . . 6 AOE 2 | . . 2 Classes Destroyed 6 | 2 2 2 Tunneler 5 | 5 . . Recycler 1 | 1 . . Swarmer 10 | . 3 7 Grunt 4 | . 4 . Sentry 1 | . . 1 Subdweller 12 | . . 12 Best Kill Streak 4 | 2 4 4 Combat Bots Only 4 | . 4 4 Max Kills in Single Turn 2 | 1 2 1 Gunslinging 1 | . 1 . Exploded 1 | . . 1 Melee . | . . . Uniques/NPCs Destroyed . | . . . Combat | -11 -10 -10 -------- Run | Yrd Mat Sub Hostile Shots Fired 125 | . 26 99 Missed 34 | . 6 28 Damage Taken 1623 | . 240 1383 Core 253 | . 36 217 Absorbed by Shields . | . . . Regen/Repaired (Parts) 71 | . 71 . Core Remaining (%) 100 | 100 . . Volleys Fired 121 | 20 15 86 Largest 2 | 2 2 2 Hottest 70 | 70 46 68 Shots Fired 224 | 40 29 155 Gun 151 | 40 29 82 Cannon 67 | . . 67 Launcher 6 | . . 6 Special . | . . . Kinetic 198 | 20 29 149 Thermal 20 | 20 . . Explosive 6 | . . 6 Electromagnetic . | . . . Robot Hit Streak 18 | 6 6 18 Robot Miss Streak 3 | 3 1 3 Penetration Max . | . . . Secondary Targets 2 | . 1 1 Max Gunslinging Chain 1 | . 1 1 Shots Hit Robots 113 | 21 20 72 Core Hits 46 | 7 8 31 Critical Kills . | . . . Critical Parts Destroyed . | . . . Critical Strikes 3 | 1 . 2 Burn 1 | 1 . . Blast 2 | . . 2 Melee Attacks 3 | . . 3 Impact . | . . . Slashing 3 | . . 3 Piercing . | . . . Sneak Attacks . | . . . Combat Hostiles . | . . . Follow-up Attacks . | . . . Damage Inflicted 2256 | 279 305 1672 Guns 1410 | 279 305 826 Cannons 451 | . . 451 Explosions 395 | . . 395 Melee . | . . . Ramming . | . . . Kinetic 1739 | 157 305 1277 Thermal 122 | 122 . . Explosive 395 | . . 395 Electromagnetic . | . . . Impact . | . . . Slashing . | . . . Piercing . | . . . Highest Corruption . | . . . Average Corruption . | . . . Corruption Purged . | . . . Corruption Blocked . | . . . Overload Shots . | . . . Overflow Damage 6 | . . 6 Projectiles . | . . . Explosions 6 | . . 6 Melee . | . . . Knockbacks 5 | . . 5 Impact . | . . . Kinetic 5 | . . 5 Secondary . | . . . Self-Inflicted Damage 51 | . . 51 Shots 2 | . . 2 Rammed . | . . . Targets Rammed . | . . . Kicked . | . . . Crushed . | . . . Highest Temperature 81 | 81 47 . Average Temperature 23 | 28 14 . Received Heat Transfer 243 | . 114 129 Siege Activations . | . . . Robots Corrupted . | . . . Combat Hostiles . | . . . Parts Fried . | . . . Impact Corruptions . | . . . Robots Melted . | . . . Combat Hostiles . | . . . Parts Melted . | . . . Heat Transferred 444 | 444 . . Parts Sabotaged . | . . . Parts Stolen . | . . . Parts Stripped . | . . . Power Chain Reactions . | . . . Alert | -11 -10 -10 ------- Run | Yrd Mat Sub Peak Influence 347 | 30 347 . Initial 19 | . 19 . Average 102 | 16 111 . Maximum Alert Level 1 | . 1 . Low Security (%) 86 | 100 84 . Level 1 13 | . 15 . Level 2 . | . . . Level 3 . | . . . Level 4 . | . . . Level 5 . | . . . High Security . | . . . Max Security . | . . . Squads Dispatched 1 | . 1 . Investigation 1 | . 1 . Extermination . | . . . Reinforcement . | . . . Assault . | . . . Garrison . | . . . Intercept . | . . . Searches Triggered . | . . . Construction Impeded . | . . . Haulers Reinforced . | . . . Active Scanning Responses . | . . . Cargo Convoy Interrupts . | . . . Stealth | -11 -10 -10 --------- Run | Yrd Mat Sub Distress Signals 2 | . 2 . Communications Jammed . | . . . Distress Signals . | . . . Times Spotted 42 | . 18 24 Peak Tracking Total 8 | . 5 8 Tactical Retreats 7 | . 5 2 Traps | -11 -10 -10 ------- Run | Yrd Mat Sub Traps Triggered 3 | . 3 . Indirectly . | . . . Trap Hack Attempts . | . . . Triggered . | . . . Disarmed . | . . . Reprogrammed . | . . . Reused . | . . . Traps Extracted . | . . . Installed . | . . . Triggered . | . . . Machines | -11 -10 -10 ---------- Run | Yrd Mat Sub Machines Disabled 2 | . 1 1 Max in Single Turn 1 | . 1 1 Machines Repaired . | . . . Machines Dismantled . | . . . Machines Sabotaged . | . . . Overloaded Fab Kills . | . . . Hacking | -11 -10 -10 --------- Run | Yrd Mat Sub Machines Accessed 4 | . 3 1 Terminals 2 | . 2 . Fabricators . | . . . Repair Stations 1 | . 1 . Recycling Units . | . . . Scanalyzers . | . . . Garrison Access . | . . . Total Hacks 14 | . 13 1 Successful 6 | . 5 1 Failed 8 | . 8 . Catastrophic . | . . . Database Lockouts . | . . . Manual . | . . . Terminals 9 | . 9 . Fabricators . | . . . Repair Stations 4 | . 4 . Recycling Units . | . . . Scanalyzers . | . . . Garrison Access . | . . . Terminal Hacks 3 | . 2 1 Prototype ID Bank 1 | . 1 . Locate Traps 1 | . 1 . Derelict Proto ID Bank 1 | . . 1 Fabricator Hacks . | . . . Repair Station Hacks 3 | . 3 . Scan Component 2 | . 2 . Repair 1 | . 1 . Recycling Unit Hacks . | . . . Scanalyzer . | . . . Garrison Access Hacks . | . . . Unauthorized Hacks . | . . . Terminals . | . . . Fabricators . | . . . Repair Stations . | . . . Recycling Units . | . . . Scanalyzers . | . . . Garrison Access . | . . . Data Cores Recovered . | . . . Used . | . . . Hacking Detections 3 | . 3 . Full Trace Events . | . . . Feedback Events . | . . . Feedback Blocked . | . . . Robot Schematics Acquired . | . . . Robots Built . | . . . Authchips . | . . . Time . | . . . Total Robot Build Rating . | . . . Part Schematics Acquired . | . . . Parts Built . | . . . Authchips . | . . . Time . | . . . Total Part Build Rating . | . . . Parts Repaired 1 | . 1 . Time 32 | . 32 . Parts Recycled . | . . . Recycled Matter . | . . . Retrieved Matter . | . . . Retrieved Components . | . . . Parts Scanalyzed . | . . . Part Schematics Acquired . | . . . Parts Damaged . | . . . Bothacking | -11 -10 -10 ------------ Run | Yrd Mat Sub Used RIF Installer . | . . . Robots Hacked . | . . . Non-combat . | . . . Combat . | . . . Robot Hacks Applied . | . . . Relay Couplers Released . | . . . Fabnet Peak Effective % . | . . . Robots Rewired . | . . . Allies Hacked . | . . . Hacks Repelled . | . . . Allies | -11 -10 -10 -------- Run | Yrd Mat Sub Total Allies . | . . . Largest Group . | . . . Highest-Rated Group . | . . . Highest-Rated Ally . | . . . Total Orders . | . . . Ally Attacks . | . . . Total Damage . | . . . Kills . | . . . Allies Corrupted . | . . . Allies Melted . | . . . Intel | -11 -10 -10 ------- Run | Yrd Mat Sub Robot Analysis Total . | . . . Derelict Logs Recovered 1 | . . 1 Drone Launches . | . . . Drone Recoveries . | . . . Exploration | -11 -10 -10 ------------- Run | Yrd Mat Sub Turns Passed 4012 | 157 1492 2363 Spaces Moved 2193 | 59 520 1614 Core . | . . . Treads . | . . . Legs 74 | 59 15 . Wheels 2119 | . 505 1614 Hover . | . . . Flight . | . . . Fastest Speed 95 | 120 95 100 Average Speed 106 | 120 102 107 Slowest Speed 120 | 120 120 120 Overloaded Moves . | . . . Propulsion Burnouts . | . . . Robots Hopped . | . . . Cave-ins Triggered . | . . . Exploration Rate (%) 45 | 4 53 79 Regions Visited 2 Branch Regions 1 Pre-discovered Areas 1 | . . 1 Known Exits Taken . | . . . Unknown Exits Taken 2 | 1 1 . Scrap Searched 3 | . . 3 Spaces Dug 1 | . . 1 Terrain Destroyed 35 | . . 35 Melee . | . . . Projectile 2 | . . 2 AOE 33 | . . 33 Terrain Rammed . | . . . Walls Destroyed . | . . . Machines Disabled . | . . . Actions | -11 -10 -10 --------- Run | Yrd Mat Sub Total 3649 | 106 1457 2086 Wait 1241 | 22 886 333 Move 2191 | 58 519 1614 Hop . | . . . Pick Up 30 | 2 17 11 Fast Attach 2 | . . 2 Attach 13 | . 9 4 Detach . | . . . Swap 24 | 1 6 17 Drop 18 | 3 5 10 Fire 121 | 20 15 86 Melee 3 | . . 3 Ram . | . . . Kick . | . . . Crush . | . . . Escape Stasis . | . . . Rewire . | . . . Trap . | . . . Miscellaneous 6 | . . 6 Route ------- -11/Scrapyard -10/Materials (discovered 3 exits: [*Mat] / [*Min] / *Sub) -10/Subcaves (discovered 1 exit: [*Mat]) History --------- Turn | Location | Event 1 | -11/Scrapyard | Discovered new exit (range 3) 158 | -11/Scrapyard | Entered Materials 328 | -10/Materials | Build established: Mutant 405 | -10/Materials | Repaired Autogun 472 | -10/Materials | Discovered new exit (range 9) 1106 | -10/Materials | Discovered new exit (range 16) 1609 | -10/Materials | Discovered new exit (range 5) 1650 | -10/Materials | Entered Subcaves 1758 | -10/Subcaves | Shifting Twisted Machinery released Ripper 1760 | -10/Subcaves | Shifting Twisted Machinery released Flamer 2022 | -10/Subcaves | Shifting Twisted Machinery released Shrapnel Trap 2026 | -10/Subcaves | Shifting Twisted Machinery released Mak. Hammer 2781 | -10/Subcaves | A swath of the cavern ceiling suddenly collapsed 2851 | -10/Subcaves | Core integrity fell below 50% 2971 | -10/Subcaves | Learned location of Zion (-6) 3180 | -10/Subcaves | Discovered new exit (range 10) 3243 | -10/Subcaves | Visited 4L-MR0's lab 3263 | -10/Subcaves | Found Meta Core 3264 | -10/Subcaves | Attached Meta Core, gained temporary slots: Propulsion, Utility, Weapon 3562 | -10/Subcaves | Build established: Subdweller-Mutant 3955 | -10/Subcaves | Ambushed by Subdwellers from Twisted Machinery 3981 | -10/Subcaves | Build established: Mutant 4000 | -10/Subcaves | A Subdweller sparked back to life 4000 | -10/Subcaves | A Subdweller sparked back to life 4000 | -10/Subcaves | A Subdweller sparked back to life 4010 | -10/Subcaves | Core integrity fell below 20% 4013 | -10/Subcaves | Destroyed by NO-7RP(R) with Subdweller Machine Gun Last Messages --------------- 03987_ Scrap Shield Fragment affixed to Scrap Shield (+31). 03988_ Acquired 17 matter. 03990_ Scrap Shield Fragment affixed to Scrap Shield (+44). 04000_ LT-EAL(R) creaks and sparks as it begins to move. 04000_ IH-03N(R) creaks and sparks as it begins to move. 04000_ NO-7RP(R) creaks and sparks as it begins to move. 04000_ Destroyed Sub. Power Source. 04003_ IH-03N(R) destroyed. 04004_ The unstable cave ceiling collapses. 04004_ Flamer crushed. 04005_ The unstable cave ceiling collapses. 04006_ Wheel destroyed. 04009_ Scrap Shield destroyed. 04009_ Rocket Launcher destroyed. 04010_ Temporary Utility slot lost. Map ----- +----------------------------------------------------+ | ??????????????????????????????????????????? | | ??????????????????????????????????????????? | | ??????????????????????????????????????????? | | ??????????????????????????????????????????? | | ??????????????????????????????????????????? | | ??????????????????????????????????????????? | | ??????????????????????????????????????????? | | ??????????????????????????????????????????? | | ??????????????????????????????????????????? | | ??????????????????????????????????????????? | | ???????????????? ????????????????????????? | | ???????????????# ????????????????????????? | | ???????????????# ???????????????????????? | | ??????????????? ???????????????????????? | | ??????????????? ???????????????????????? | | ??????????????## ##?????????????????????? | | ??????????????< ##?????????????#####??? | | ??????????????#< < #?????????????# #??? | | ??????????????# ]= #????????????## ###? | | ??????????????# &RR ######???????## #? | | ?????????????## & ## #??????## #? | | ?????????????# #???????# #### | | ????????????## ######?## #### | | ????????????# ## ### | | ????????????# # | | ?????????????# @ # # | | ?????????????# [ ### | | ????????????# ## ##?## | | ????????????## #???## | | ?????????????# #????## | | ?????????????### ##?????# | | ???????????????# " # ##?????## | | ???????????????# "### #?????# | | ???????????????" ;##?## #####??# | | ???????????????# ;#??? #?#" ### | | ???????????????# #???" #?# | | ???????????????# "?? "###?## | | ???????????????#### ####???"?????# # | | ???????????????????"""#????????????# ### | | ???????????????????##??????????????# #?? | | ???????????????????????????????????## ##?? | | ????????????????????????????????????####??? | | ??????????????????????????????????????????? | | ??????????????????????????????????????????? | | ??????????????????????????????????????????? | | ??????????????????????????????????????????? | | ??????????????????????????????????????????? | | ??????????????????????????????????????????? | | ??????????????????????????????????????????? | | ??????????????????????????????????????????? | +----------------------------------------------------+ Best States ------------- Heat Dissipation 25 Energy Generation 17 Energy Capacity 250 Matter Stores 300 Matter Capacity 300 Sight Range 16 Terrain Scan Density 10 Armor Coverage 800 Evasion (%) 55 Item Schematics ----------------- None Robot Schematics ------------------ None Fabricated ------------ Nothing Alien Tech Used ----------------- None Achievements -------------- None Challenges ------------ None Game ------ Seed SubatomicMyomerDetector Manual? 0 Play Time 00:21:28 Cumulative 76.6 hours Start 2024.08.29 @ 17:22:24 End 2024.08.29 @ 17:49:52 Sessions 1 Manual Loads 0 Difficulty Rogue Special Mode None Game No. 127 Rogue 123 Adventurer 4 Explorer 0 Win Type - Total 0 Types 0/0/0/0/0/0/0/0/0 Lore% 35 Gallery% 46 Achievement% 35 Wizard Run 0 Options --------- Layout 2 ASCII 0 Keyboard 0 Movement Mouse Keybinds 0 Fullscreen 2 Font 24/Smallcaps Map View 50x44 Zoom Use 0% Tactical HUD 1 Map Filters NONE Filters NONE Steam 1 RUN: 49d5585c-2606-460e-93b9-b8d99a023562